{"text_format":"3","workbook":"xlsx","n_sheets":4,"sheets":["TIKSLAI","MITYBA","SPORTAS","Diagramos skaičiavimai"],"not_rendered":{"charts":2,"defined_names":19},"read":"whole","date_system":"1900"}

{"sheet":"TIKSLAI","index":0,"n_rows":16,"n_cols":11,"rows_kept":16,"merged":[[2,1,3,1],[7,1,8,1]]}
[null,{"$f":"TODAY()","v":"2017-05-03"},"TIKSLAI",{"$nulls":6},"Sportas","Mityba"]
[null,"PRADŽIOS DATA","MITYBOS IR SPORTO ŽURNALAS"]
[null,{"$f":"PradžiosData+121","v":"2017-09-01"},"MITYBOS ANALIZĖ"]
[]
[null,"PABAIGOS DATA"]
[null,{"v":110,"d":"110.00"}]
[null,"PRADINIS SVORIS"]
[null,{"v":90,"d":"90.00"},"SPORTO ANALIZĖ"]
[]
[null,"GALUTINIS SVORIS"]
[null,{"$f":"PradinisSvoris-GalutinisSvoris","v":20}]
[null,"KIEK REIKIA NUMESTI"]
[null,{"$f":"PabaigosData-PradžiosData","v":121}]
[null,"PER KIEK DIENŲ"]
[null,{"$f":"TikslinisSvoris/B13","v":{"v":0.1652892561983471,"d":"0.17"}}]
[null,"KIEK NUMESTI PER DIENĄ"]

{"sheet":"MITYBA","index":1,"n_rows":19,"n_cols":9,"rows_kept":19}
[null,"MITYBA",{"$nulls":4},"Tikslai","Sportas"]
[null,{"$f":"Paantraštė","v":"MITYBOS IR SPORTO ŽURNALAS"}]
[null,"DATA","LAIKAS","APRAŠAS","KALORIJOS","ANGLIAVANDENIAI","BALTYMAI","RIEBALAI","PASTABOS"]
[null,{"$f":"PradžiosData","v":"2017-05-03"},"07:00:00","Kava",1,0,0,0,"Ryto kava"]
[null,{"$f":"PradžiosData","v":"2017-05-03"},"08:00:00","Riestainis",10,10,2,10,"Lengvi pusryčiai"]
[null,{"$f":"PradžiosData","v":"2017-05-03"},"12:00:00","Pietūs",283,46,18,{"v":3.5,"d":"4"},"Sumuštinis su kalakutiena"]
[null,{"$f":"PradžiosData","v":"2017-05-03"},"19:00:00","Vakarienė",500,42,35,25,"Bulvių apkepas"]
[null,{"$f":"PradžiosData+1","v":"2017-05-04"},"07:00:00","Kava",1,0,0,0,"Ryto kava"]
[null,{"$f":"PradžiosData+1","v":"2017-05-04"},"08:00:00","Skrebutis",10,10,2,10,"Lengvi pusryčiai"]
[null,{"$f":"PradžiosData+1","v":"2017-05-04"},"12:00:00","Pietūs",189,26,3,8,"Sumuštinis"]
[null,{"$f":"PradžiosData+1","v":"2017-05-04"},"19:00:00","Vakarienė",477,62,{"v":13.5,"d":"14"},21,"Vakarienė"]
[null,{"$f":"PradžiosData+2","v":"2017-05-05"},"07:00:00","Kava",1,0,0,0,"Ryto kava"]
[null,{"$f":"PradžiosData+2","v":"2017-05-05"},"08:00:00","Riestainis",245,48,10,{"v":1.5,"d":"2"},"Lengvi pusryčiai"]
[null,{"$f":"PradžiosData+2","v":"2017-05-05"},"12:00:00","Pietūs",247,11,43,5,"Salotos"]
[null,{"$f":"PradžiosData+2","v":"2017-05-05"},"19:00:00","Vakarienė",456,64,32,22,"Vakarienė"]
[null,{"$f":"PradžiosData+3","v":"2017-05-06"},"07:00:00","Skrebutis",10,10,2,10,"Lengvi pusryčiai"]
[null,{"$f":"PradžiosData+3","v":"2017-05-06"},"10:00:00","Kava",135,{"v":12.36,"d":"12"},{"v":8.81,"d":"9"},{"v":5.51,"d":"6"},"Latė kava"]
[null,{"$f":"PradžiosData+3","v":"2017-05-06"},"12:15:00","Pietūs",184,7,{"v":5.43,"d":"5"},15,"Salotos"]
[null,{"$f":"PradžiosData+5","v":"2017-05-08"},"19:00:00","Vakarienė",477,62,{"v":13.5,"d":"14"},21,"Vakarienė"]

{"sheet":"SPORTAS","index":2,"n_rows":20,"n_cols":7,"rows_kept":20}
[null,"SPORTAS",{"$nulls":3},"Mityba","Tikslai"]
[null,{"$f":"Paantraštė","v":"MITYBOS IR SPORTO ŽURNALAS"}]
[null,"DATA","TRUKMĖ (MIN.)","SUDEGINTOS KALORIJOS","PASTABOS"]
[null,{"$f":"PradžiosData+4","v":"2017-05-07"},30,120,"Bėgimo treniruotė"]
[null,{"$f":"B4+1","v":"2017-05-08"},60,180,"Lengva aerobika"]
[null,{"$f":"B5+1","v":"2017-05-09"},60,350,"Didelio krūvio treniruotė"]
[null,"2017-05-10",30,150,"Bėgimo treniruotė"]
[null,"2017-05-11",25,125,"Bėgimas"]
[null,"2017-05-12",20,285,"Bėgimo treniruotė"]
[null,"2017-05-13",40,205,"Bėgimas"]
[null,"2017-05-14",30,335,"Bėgimas"]
[null,"2017-05-15",40,175,"Bėgimas"]
[null,"2017-05-16",45,325,"Bėgimo treniruotė"]
[null,"2017-05-17",40,270,"Bėgimas"]
[null,"2017-05-18",20,295,"Bėgimo treniruotė"]
[null,"2017-05-19",45,350,"Bėgimas"]
[null,"2017-05-20",35,320,"Bėgimas"]
[null,"2017-05-21",40,290,"Bėgimas"]
[null,{"$f":"B18+1","v":"2017-05-22"},25,265,"Bėgimo treniruotė"]
[null,"2017-05-23",20,195,"Bėgimas"]

{"sheet":"Diagramos skaičiavimai","index":3,"n_rows":36,"n_cols":10,"rows_kept":36,"hidden":true,"merged":[[1,1,1,9],[19,1,19,9]]}
[]
[null,"MITYBOS ANALIZĖS DIAGRAMOS DUOMENYS"]
[]
[null,"Pradinė eilutė",{"$f":"ROW(Mityba[[#Headers],[DATA]])+1","v":4},"DATA","DIENA","RIEBALAI","BALTYMAI","ANGLIAVANDENIAI","KALORIJOS","Skaič."]
[null,"Paskutinis mitybos įrašas",{"$f":"MATCH(9.99E+307,Mityba[DATA])+MitybosEilutėPradžia-1","v":19},{"$f":"IFERROR(IF(INDEX(Mityba[],MitybosPaskutinėPabaiga-MitybosEilutėPradžia-J5,1)<>\"\",INDEX(Mityba[],MitybosPaskutinėPabaiga-MitybosEilutėPradžia-J5,1),\"\"),\"\")","v":"2017-05-03"},{"$f":"UPPER(TEXT(D5,\"DDD\"))","v":"TR"},{"$f":"IFERROR((IF(INDEX(Mityba[],MitybosPaskutinėPabaiga-MitybosEilutėPradžia-J5,1)<>\"\",INDEX(Mityba[],MitybosPaskutinėPabaiga-MitybosEilutėPradžia-J5,7),NA())),NA())","v":3.5},{"$f":"IFERROR((IF(INDEX(Mityba[],MitybosPaskutinėPabaiga-MitybosEilutėPradžia-J5,1)<>\"\",INDEX(Mityba[],MitybosPaskutinėPabaiga-MitybosEilutėPradžia-J5,6),NA())),NA())","v":18},{"$f":"IFERROR((IF(INDEX(Mityba[],MitybosPaskutinėPabaiga-MitybosEilutėPradžia-J5,1)<>\"\",INDEX(Mityba[],MitybosPaskutinėPabaiga-MitybosEilutėPradžia-J5,5),NA())),NA())","v":46},{"$f":"IFERROR((IF(INDEX(Mityba[],MitybosPaskutinėPabaiga-MitybosEilutėPradžia-J5,1)<>\"\",INDEX(Mityba[],MitybosPaskutinėPabaiga-MitybosEilutėPradžia-J5,4),NA())),NA())","v":283},12]
[{"$nulls":3},{"$f":"IFERROR(IF(INDEX(Mityba[],MitybosPaskutinėPabaiga-MitybosEilutėPradžia-J6,1)<>\"\",INDEX(Mityba[],MitybosPaskutinėPabaiga-MitybosEilutėPradžia-J6,1),\"\"),\"\")","v":"2017-05-03"},"TR",{"$f":"IFERROR((IF(INDEX(Mityba[],MitybosPaskutinėPabaiga-MitybosEilutėPradžia-J6,1)<>\"\",INDEX(Mityba[],MitybosPaskutinėPabaiga-MitybosEilutėPradžia-J6,7),NA())),NA())","v":25},{"$f":"IFERROR((IF(INDEX(Mityba[],MitybosPaskutinėPabaiga-MitybosEilutėPradžia-J6,1)<>\"\",INDEX(Mityba[],MitybosPaskutinėPabaiga-MitybosEilutėPradžia-J6,6),NA())),NA())","v":35},{"$f":"IFERROR((IF(INDEX(Mityba[],MitybosPaskutinėPabaiga-MitybosEilutėPradžia-J6,1)<>\"\",INDEX(Mityba[],MitybosPaskutinėPabaiga-MitybosEilutėPradžia-J6,5),NA())),NA())","v":42},{"$f":"IFERROR((IF(INDEX(Mityba[],MitybosPaskutinėPabaiga-MitybosEilutėPradžia-J6,1)<>\"\",INDEX(Mityba[],MitybosPaskutinėPabaiga-MitybosEilutėPradžia-J6,4),NA())),NA())","v":500},11]
[{"$nulls":3},{"$f":"IFERROR(IF(INDEX(Mityba[],MitybosPaskutinėPabaiga-MitybosEilutėPradžia-J7,1)<>\"\",INDEX(Mityba[],MitybosPaskutinėPabaiga-MitybosEilutėPradžia-J7,1),\"\"),\"\")","v":"2017-05-04"},"KT",{"$f":"IFERROR((IF(INDEX(Mityba[],MitybosPaskutinėPabaiga-MitybosEilutėPradžia-J7,1)<>\"\",INDEX(Mityba[],MitybosPaskutinėPabaiga-MitybosEilutėPradžia-J7,7),NA())),NA())","v":0},{"$f":"IFERROR((IF(INDEX(Mityba[],MitybosPaskutinėPabaiga-MitybosEilutėPradžia-J7,1)<>\"\",INDEX(Mityba[],MitybosPaskutinėPabaiga-MitybosEilutėPradžia-J7,6),NA())),NA())","v":0},{"$f":"IFERROR((IF(INDEX(Mityba[],MitybosPaskutinėPabaiga-MitybosEilutėPradžia-J7,1)<>\"\",INDEX(Mityba[],MitybosPaskutinėPabaiga-MitybosEilutėPradžia-J7,5),NA())),NA())","v":0},{"$f":"IFERROR((IF(INDEX(Mityba[],MitybosPaskutinėPabaiga-MitybosEilutėPradžia-J7,1)<>\"\",INDEX(Mityba[],MitybosPaskutinėPabaiga-MitybosEilutėPradžia-J7,4),NA())),NA())","v":1},10]
[{"$nulls":3},{"$f":"IFERROR(IF(INDEX(Mityba[],MitybosPaskutinėPabaiga-MitybosEilutėPradžia-J8,1)<>\"\",INDEX(Mityba[],MitybosPaskutinėPabaiga-MitybosEilutėPradžia-J8,1),\"\"),\"\")","v":"2017-05-04"},"KT",{"$f":"IFERROR((IF(INDEX(Mityba[],MitybosPaskutinėPabaiga-MitybosEilutėPradžia-J8,1)<>\"\",INDEX(Mityba[],MitybosPaskutinėPabaiga-MitybosEilutėPradžia-J8,7),NA())),NA())","v":10},{"$f":"IFERROR((IF(INDEX(Mityba[],MitybosPaskutinėPabaiga-MitybosEilutėPradžia-J8,1)<>\"\",INDEX(Mityba[],MitybosPaskutinėPabaiga-MitybosEilutėPradžia-J8,6),NA())),NA())","v":2},{"$f":"IFERROR((IF(INDEX(Mityba[],MitybosPaskutinėPabaiga-MitybosEilutėPradžia-J8,1)<>\"\",INDEX(Mityba[],MitybosPaskutinėPabaiga-MitybosEilutėPradžia-J8,5),NA())),NA())","v":10},{"$f":"IFERROR((IF(INDEX(Mityba[],MitybosPaskutinėPabaiga-MitybosEilutėPradžia-J8,1)<>\"\",INDEX(Mityba[],MitybosPaskutinėPabaiga-MitybosEilutėPradžia-J8,4),NA())),NA())","v":10},9]
[{"$nulls":3},{"$f":"IFERROR(IF(INDEX(Mityba[],MitybosPaskutinėPabaiga-MitybosEilutėPradžia-J9,1)<>\"\",INDEX(Mityba[],MitybosPaskutinėPabaiga-MitybosEilutėPradžia-J9,1),\"\"),\"\")","v":"2017-05-04"},"KT",{"$f":"IFERROR((IF(INDEX(Mityba[],MitybosPaskutinėPabaiga-MitybosEilutėPradžia-J9,1)<>\"\",INDEX(Mityba[],MitybosPaskutinėPabaiga-MitybosEilutėPradžia-J9,7),NA())),NA())","v":8},{"$f":"IFERROR((IF(INDEX(Mityba[],MitybosPaskutinėPabaiga-MitybosEilutėPradžia-J9,1)<>\"\",INDEX(Mityba[],MitybosPaskutinėPabaiga-MitybosEilutėPradžia-J9,6),NA())),NA())","v":3},{"$f":"IFERROR((IF(INDEX(Mityba[],MitybosPaskutinėPabaiga-MitybosEilutėPradžia-J9,1)<>\"\",INDEX(Mityba[],MitybosPaskutinėPabaiga-MitybosEilutėPradžia-J9,5),NA())),NA())","v":26},{"$f":"IFERROR((IF(INDEX(Mityba[],MitybosPaskutinėPabaiga-MitybosEilutėPradžia-J9,1)<>\"\",INDEX(Mityba[],MitybosPaskutinėPabaiga-MitybosEilutėPradžia-J9,4),NA())),NA())","v":189},8]
[{"$nulls":3},{"$f":"IFERROR(IF(INDEX(Mityba[],MitybosPaskutinėPabaiga-MitybosEilutėPradžia-J10,1)<>\"\",INDEX(Mityba[],MitybosPaskutinėPabaiga-MitybosEilutėPradžia-J10,1),\"\"),\"\")","v":"2017-05-04"},"KT",{"$f":"IFERROR((IF(INDEX(Mityba[],MitybosPaskutinėPabaiga-MitybosEilutėPradžia-J10,1)<>\"\",INDEX(Mityba[],MitybosPaskutinėPabaiga-MitybosEilutėPradžia-J10,7),NA())),NA())","v":21},{"$f":"IFERROR((IF(INDEX(Mityba[],MitybosPaskutinėPabaiga-MitybosEilutėPradžia-J10,1)<>\"\",INDEX(Mityba[],MitybosPaskutinėPabaiga-MitybosEilutėPradžia-J10,6),NA())),NA())","v":13.5},{"$f":"IFERROR((IF(INDEX(Mityba[],MitybosPaskutinėPabaiga-MitybosEilutėPradžia-J10,1)<>\"\",INDEX(Mityba[],MitybosPaskutinėPabaiga-MitybosEilutėPradžia-J10,5),NA())),NA())","v":62},{"$f":"IFERROR((IF(INDEX(Mityba[],MitybosPaskutinėPabaiga-MitybosEilutėPradžia-J10,1)<>\"\",INDEX(Mityba[],MitybosPaskutinėPabaiga-MitybosEilutėPradžia-J10,4),NA())),NA())","v":477},7]
[{"$nulls":3},{"$f":"IFERROR(IF(INDEX(Mityba[],MitybosPaskutinėPabaiga-MitybosEilutėPradžia-J11,1)<>\"\",INDEX(Mityba[],MitybosPaskutinėPabaiga-MitybosEilutėPradžia-J11,1),\"\"),\"\")","v":"2017-05-05"},"PN",{"$f":"IFERROR((IF(INDEX(Mityba[],MitybosPaskutinėPabaiga-MitybosEilutėPradžia-J11,1)<>\"\",INDEX(Mityba[],MitybosPaskutinėPabaiga-MitybosEilutėPradžia-J11,7),NA())),NA())","v":0},{"$f":"IFERROR((IF(INDEX(Mityba[],MitybosPaskutinėPabaiga-MitybosEilutėPradžia-J11,1)<>\"\",INDEX(Mityba[],MitybosPaskutinėPabaiga-MitybosEilutėPradžia-J11,6),NA())),NA())","v":0},{"$f":"IFERROR((IF(INDEX(Mityba[],MitybosPaskutinėPabaiga-MitybosEilutėPradžia-J11,1)<>\"\",INDEX(Mityba[],MitybosPaskutinėPabaiga-MitybosEilutėPradžia-J11,5),NA())),NA())","v":0},{"$f":"IFERROR((IF(INDEX(Mityba[],MitybosPaskutinėPabaiga-MitybosEilutėPradžia-J11,1)<>\"\",INDEX(Mityba[],MitybosPaskutinėPabaiga-MitybosEilutėPradžia-J11,4),NA())),NA())","v":1},6]
[{"$nulls":3},{"$f":"IFERROR(IF(INDEX(Mityba[],MitybosPaskutinėPabaiga-MitybosEilutėPradžia-J12,1)<>\"\",INDEX(Mityba[],MitybosPaskutinėPabaiga-MitybosEilutėPradžia-J12,1),\"\"),\"\")","v":"2017-05-05"},"PN",{"$f":"IFERROR((IF(INDEX(Mityba[],MitybosPaskutinėPabaiga-MitybosEilutėPradžia-J12,1)<>\"\",INDEX(Mityba[],MitybosPaskutinėPabaiga-MitybosEilutėPradžia-J12,7),NA())),NA())","v":1.5},{"$f":"IFERROR((IF(INDEX(Mityba[],MitybosPaskutinėPabaiga-MitybosEilutėPradžia-J12,1)<>\"\",INDEX(Mityba[],MitybosPaskutinėPabaiga-MitybosEilutėPradžia-J12,6),NA())),NA())","v":10},{"$f":"IFERROR((IF(INDEX(Mityba[],MitybosPaskutinėPabaiga-MitybosEilutėPradžia-J12,1)<>\"\",INDEX(Mityba[],MitybosPaskutinėPabaiga-MitybosEilutėPradžia-J12,5),NA())),NA())","v":48},{"$f":"IFERROR((IF(INDEX(Mityba[],MitybosPaskutinėPabaiga-MitybosEilutėPradžia-J12,1)<>\"\",INDEX(Mityba[],MitybosPaskutinėPabaiga-MitybosEilutėPradžia-J12,4),NA())),NA())","v":245},5]
[{"$nulls":3},{"$f":"IFERROR(IF(INDEX(Mityba[],MitybosPaskutinėPabaiga-MitybosEilutėPradžia-J13,1)<>\"\",INDEX(Mityba[],MitybosPaskutinėPabaiga-MitybosEilutėPradžia-J13,1),\"\"),\"\")","v":"2017-05-05"},"PN",{"$f":"IFERROR((IF(INDEX(Mityba[],MitybosPaskutinėPabaiga-MitybosEilutėPradžia-J13,1)<>\"\",INDEX(Mityba[],MitybosPaskutinėPabaiga-MitybosEilutėPradžia-J13,7),NA())),NA())","v":5},{"$f":"IFERROR((IF(INDEX(Mityba[],MitybosPaskutinėPabaiga-MitybosEilutėPradžia-J13,1)<>\"\",INDEX(Mityba[],MitybosPaskutinėPabaiga-MitybosEilutėPradžia-J13,6),NA())),NA())","v":43},{"$f":"IFERROR((IF(INDEX(Mityba[],MitybosPaskutinėPabaiga-MitybosEilutėPradžia-J13,1)<>\"\",INDEX(Mityba[],MitybosPaskutinėPabaiga-MitybosEilutėPradžia-J13,5),NA())),NA())","v":11},{"$f":"IFERROR((IF(INDEX(Mityba[],MitybosPaskutinėPabaiga-MitybosEilutėPradžia-J13,1)<>\"\",INDEX(Mityba[],MitybosPaskutinėPabaiga-MitybosEilutėPradžia-J13,4),NA())),NA())","v":247},4]
[{"$nulls":3},{"$f":"IFERROR(IF(INDEX(Mityba[],MitybosPaskutinėPabaiga-MitybosEilutėPradžia-J14,1)<>\"\",INDEX(Mityba[],MitybosPaskutinėPabaiga-MitybosEilutėPradžia-J14,1),\"\"),\"\")","v":"2017-05-05"},"PN",{"$f":"IFERROR((IF(INDEX(Mityba[],MitybosPaskutinėPabaiga-MitybosEilutėPradžia-J14,1)<>\"\",INDEX(Mityba[],MitybosPaskutinėPabaiga-MitybosEilutėPradžia-J14,7),NA())),NA())","v":22},{"$f":"IFERROR((IF(INDEX(Mityba[],MitybosPaskutinėPabaiga-MitybosEilutėPradžia-J14,1)<>\"\",INDEX(Mityba[],MitybosPaskutinėPabaiga-MitybosEilutėPradžia-J14,6),NA())),NA())","v":32},{"$f":"IFERROR((IF(INDEX(Mityba[],MitybosPaskutinėPabaiga-MitybosEilutėPradžia-J14,1)<>\"\",INDEX(Mityba[],MitybosPaskutinėPabaiga-MitybosEilutėPradžia-J14,5),NA())),NA())","v":64},{"$f":"IFERROR((IF(INDEX(Mityba[],MitybosPaskutinėPabaiga-MitybosEilutėPradžia-J14,1)<>\"\",INDEX(Mityba[],MitybosPaskutinėPabaiga-MitybosEilutėPradžia-J14,4),NA())),NA())","v":456},3]
[{"$nulls":3},{"$f":"IFERROR(IF(INDEX(Mityba[],MitybosPaskutinėPabaiga-MitybosEilutėPradžia-J15,1)<>\"\",INDEX(Mityba[],MitybosPaskutinėPabaiga-MitybosEilutėPradžia-J15,1),\"\"),\"\")","v":"2017-05-06"},"ŠT",{"$f":"IFERROR((IF(INDEX(Mityba[],MitybosPaskutinėPabaiga-MitybosEilutėPradžia-J15,1)<>\"\",INDEX(Mityba[],MitybosPaskutinėPabaiga-MitybosEilutėPradžia-J15,7),NA())),NA())","v":10},{"$f":"IFERROR((IF(INDEX(Mityba[],MitybosPaskutinėPabaiga-MitybosEilutėPradžia-J15,1)<>\"\",INDEX(Mityba[],MitybosPaskutinėPabaiga-MitybosEilutėPradžia-J15,6),NA())),NA())","v":2},{"$f":"IFERROR((IF(INDEX(Mityba[],MitybosPaskutinėPabaiga-MitybosEilutėPradžia-J15,1)<>\"\",INDEX(Mityba[],MitybosPaskutinėPabaiga-MitybosEilutėPradžia-J15,5),NA())),NA())","v":10},{"$f":"IFERROR((IF(INDEX(Mityba[],MitybosPaskutinėPabaiga-MitybosEilutėPradžia-J15,1)<>\"\",INDEX(Mityba[],MitybosPaskutinėPabaiga-MitybosEilutėPradžia-J15,4),NA())),NA())","v":10},2]
[{"$nulls":3},{"$f":"IFERROR(IF(INDEX(Mityba[],MitybosPaskutinėPabaiga-MitybosEilutėPradžia-J16,1)<>\"\",INDEX(Mityba[],MitybosPaskutinėPabaiga-MitybosEilutėPradžia-J16,1),\"\"),\"\")","v":"2017-05-06"},"ŠT",{"$f":"IFERROR((IF(INDEX(Mityba[],MitybosPaskutinėPabaiga-MitybosEilutėPradžia-J16,1)<>\"\",INDEX(Mityba[],MitybosPaskutinėPabaiga-MitybosEilutėPradžia-J16,7),NA())),NA())","v":5.51},{"$f":"IFERROR((IF(INDEX(Mityba[],MitybosPaskutinėPabaiga-MitybosEilutėPradžia-J16,1)<>\"\",INDEX(Mityba[],MitybosPaskutinėPabaiga-MitybosEilutėPradžia-J16,6),NA())),NA())","v":8.81},{"$f":"IFERROR((IF(INDEX(Mityba[],MitybosPaskutinėPabaiga-MitybosEilutėPradžia-J16,1)<>\"\",INDEX(Mityba[],MitybosPaskutinėPabaiga-MitybosEilutėPradžia-J16,5),NA())),NA())","v":12.36},{"$f":"IFERROR((IF(INDEX(Mityba[],MitybosPaskutinėPabaiga-MitybosEilutėPradžia-J16,1)<>\"\",INDEX(Mityba[],MitybosPaskutinėPabaiga-MitybosEilutėPradžia-J16,4),NA())),NA())","v":135},1]
[{"$nulls":3},{"$f":"IFERROR(IF(INDEX(Mityba[],MitybosPaskutinėPabaiga-MitybosEilutėPradžia-J17,1)<>\"\",INDEX(Mityba[],MitybosPaskutinėPabaiga-MitybosEilutėPradžia-J17,1),\"\"),\"\")","v":"2017-05-06"},"ŠT",{"$f":"IFERROR((IF(INDEX(Mityba[],MitybosPaskutinėPabaiga-MitybosEilutėPradžia-J17,1)<>\"\",INDEX(Mityba[],MitybosPaskutinėPabaiga-MitybosEilutėPradžia-J17,7),NA())),NA())","v":15},{"$f":"IFERROR((IF(INDEX(Mityba[],MitybosPaskutinėPabaiga-MitybosEilutėPradžia-J17,1)<>\"\",INDEX(Mityba[],MitybosPaskutinėPabaiga-MitybosEilutėPradžia-J17,6),NA())),NA())","v":5.43},{"$f":"IFERROR((IF(INDEX(Mityba[],MitybosPaskutinėPabaiga-MitybosEilutėPradžia-J17,1)<>\"\",INDEX(Mityba[],MitybosPaskutinėPabaiga-MitybosEilutėPradžia-J17,5),NA())),NA())","v":7},{"$f":"IFERROR((IF(INDEX(Mityba[],MitybosPaskutinėPabaiga-MitybosEilutėPradžia-J17,1)<>\"\",INDEX(Mityba[],MitybosPaskutinėPabaiga-MitybosEilutėPradžia-J17,4),NA())),NA())","v":184},0]
[{"$nulls":3},{"$f":"IFERROR(IF(INDEX(Mityba[],MitybosPaskutinėPabaiga-MitybosEilutėPradžia-J18,1)<>\"\",INDEX(Mityba[],MitybosPaskutinėPabaiga-MitybosEilutėPradžia-J18,1),\"\"),\"\")","v":"2017-05-08"},"PR",{"$f":"IFERROR((IF(INDEX(Mityba[],MitybosPaskutinėPabaiga-MitybosEilutėPradžia-J18,1)<>\"\",INDEX(Mityba[],MitybosPaskutinėPabaiga-MitybosEilutėPradžia-J18,7),NA())),NA())","v":21},{"$f":"IFERROR((IF(INDEX(Mityba[],MitybosPaskutinėPabaiga-MitybosEilutėPradžia-J18,1)<>\"\",INDEX(Mityba[],MitybosPaskutinėPabaiga-MitybosEilutėPradžia-J18,6),NA())),NA())","v":13.5},{"$f":"IFERROR((IF(INDEX(Mityba[],MitybosPaskutinėPabaiga-MitybosEilutėPradžia-J18,1)<>\"\",INDEX(Mityba[],MitybosPaskutinėPabaiga-MitybosEilutėPradžia-J18,5),NA())),NA())","v":62},{"$f":"IFERROR((IF(INDEX(Mityba[],MitybosPaskutinėPabaiga-MitybosEilutėPradžia-J18,1)<>\"\",INDEX(Mityba[],MitybosPaskutinėPabaiga-MitybosEilutėPradžia-J18,4),NA())),NA())","v":477},-1]
[]
[null,"SPORTO ANALIZĖS DIAGRAMOS DUOMENYS"]
[]
[null,"Pradinė eilutė",{"$f":"ROW(Sportas[[#Headers],[DATA]])+1","v":4},"DATA","DIENA","TRUKMĖ (MIN.)","SUDEGINTOS KALORIJOS","Skaič."]
[null,"Paskutinis sporto įrašas",{"$f":"MATCH(9.99E+307,Sportas[DATA])+SportoEilutėPradžia-1","v":20},{"$f":"IFERROR(IF(INDEX(Sportas[],SportoPaskutinėPabaiga-SportoEilutėPradžia-H23,1)<>\"\",INDEX(Sportas[],SportoPaskutinėPabaiga-SportoEilutėPradžia-H23,1)),\"\")","v":"2017-05-23"},{"$f":"UPPER(TEXT(D23,\"DDD\"))","v":"AN"},{"$f":"IFERROR((IF(INDEX(Sportas[],SportoPaskutinėPabaiga-SportoEilutėPradžia-H23,1)<>\"\",INDEX(Sportas[],SportoPaskutinėPabaiga-SportoEilutėPradžia-H23,2),0)),0)","v":20},{"$f":"IFERROR((IF(INDEX(Sportas[],SportoPaskutinėPabaiga-SportoEilutėPradžia-H23,2)<>\"\",INDEX(Sportas[],SportoPaskutinėPabaiga-SportoEilutėPradžia-H23,3),0)),0)","v":195},-1]
[{"$nulls":3},{"$f":"IFERROR(IF(INDEX(Sportas[],SportoPaskutinėPabaiga-SportoEilutėPradžia-H24,1)<>\"\",INDEX(Sportas[],SportoPaskutinėPabaiga-SportoEilutėPradžia-H24,1)),\"\")","v":"2017-05-22"},"PR",{"$f":"IFERROR((IF(INDEX(Sportas[],SportoPaskutinėPabaiga-SportoEilutėPradžia-H24,1)<>\"\",INDEX(Sportas[],SportoPaskutinėPabaiga-SportoEilutėPradžia-H24,2),0)),0)","v":25},{"$f":"IFERROR((IF(INDEX(Sportas[],SportoPaskutinėPabaiga-SportoEilutėPradžia-H24,2)<>\"\",INDEX(Sportas[],SportoPaskutinėPabaiga-SportoEilutėPradžia-H24,3),0)),0)","v":265},0]
[{"$nulls":3},{"$f":"IFERROR(IF(INDEX(Sportas[],SportoPaskutinėPabaiga-SportoEilutėPradžia-H25,1)<>\"\",INDEX(Sportas[],SportoPaskutinėPabaiga-SportoEilutėPradžia-H25,1)),\"\")","v":"2017-05-21"},"SK",{"$f":"IFERROR((IF(INDEX(Sportas[],SportoPaskutinėPabaiga-SportoEilutėPradžia-H25,1)<>\"\",INDEX(Sportas[],SportoPaskutinėPabaiga-SportoEilutėPradžia-H25,2),0)),0)","v":40},{"$f":"IFERROR((IF(INDEX(Sportas[],SportoPaskutinėPabaiga-SportoEilutėPradžia-H25,2)<>\"\",INDEX(Sportas[],SportoPaskutinėPabaiga-SportoEilutėPradžia-H25,3),0)),0)","v":290},1]
[{"$nulls":3},{"$f":"IFERROR(IF(INDEX(Sportas[],SportoPaskutinėPabaiga-SportoEilutėPradžia-H26,1)<>\"\",INDEX(Sportas[],SportoPaskutinėPabaiga-SportoEilutėPradžia-H26,1)),\"\")","v":"2017-05-20"},"ŠT",{"$f":"IFERROR((IF(INDEX(Sportas[],SportoPaskutinėPabaiga-SportoEilutėPradžia-H26,1)<>\"\",INDEX(Sportas[],SportoPaskutinėPabaiga-SportoEilutėPradžia-H26,2),0)),0)","v":35},{"$f":"IFERROR((IF(INDEX(Sportas[],SportoPaskutinėPabaiga-SportoEilutėPradžia-H26,2)<>\"\",INDEX(Sportas[],SportoPaskutinėPabaiga-SportoEilutėPradžia-H26,3),0)),0)","v":320},2]
[{"$nulls":3},{"$f":"IFERROR(IF(INDEX(Sportas[],SportoPaskutinėPabaiga-SportoEilutėPradžia-H27,1)<>\"\",INDEX(Sportas[],SportoPaskutinėPabaiga-SportoEilutėPradžia-H27,1)),\"\")","v":"2017-05-19"},"PN",{"$f":"IFERROR((IF(INDEX(Sportas[],SportoPaskutinėPabaiga-SportoEilutėPradžia-H27,1)<>\"\",INDEX(Sportas[],SportoPaskutinėPabaiga-SportoEilutėPradžia-H27,2),0)),0)","v":45},{"$f":"IFERROR((IF(INDEX(Sportas[],SportoPaskutinėPabaiga-SportoEilutėPradžia-H27,2)<>\"\",INDEX(Sportas[],SportoPaskutinėPabaiga-SportoEilutėPradžia-H27,3),0)),0)","v":350},3]
[{"$nulls":3},{"$f":"IFERROR(IF(INDEX(Sportas[],SportoPaskutinėPabaiga-SportoEilutėPradžia-H28,1)<>\"\",INDEX(Sportas[],SportoPaskutinėPabaiga-SportoEilutėPradžia-H28,1)),\"\")","v":"2017-05-18"},"KT",{"$f":"IFERROR((IF(INDEX(Sportas[],SportoPaskutinėPabaiga-SportoEilutėPradžia-H28,1)<>\"\",INDEX(Sportas[],SportoPaskutinėPabaiga-SportoEilutėPradžia-H28,2),0)),0)","v":20},{"$f":"IFERROR((IF(INDEX(Sportas[],SportoPaskutinėPabaiga-SportoEilutėPradžia-H28,2)<>\"\",INDEX(Sportas[],SportoPaskutinėPabaiga-SportoEilutėPradžia-H28,3),0)),0)","v":295},4]
[{"$nulls":3},{"$f":"IFERROR(IF(INDEX(Sportas[],SportoPaskutinėPabaiga-SportoEilutėPradžia-H29,1)<>\"\",INDEX(Sportas[],SportoPaskutinėPabaiga-SportoEilutėPradžia-H29,1)),\"\")","v":"2017-05-17"},"TR",{"$f":"IFERROR((IF(INDEX(Sportas[],SportoPaskutinėPabaiga-SportoEilutėPradžia-H29,1)<>\"\",INDEX(Sportas[],SportoPaskutinėPabaiga-SportoEilutėPradžia-H29,2),0)),0)","v":40},{"$f":"IFERROR((IF(INDEX(Sportas[],SportoPaskutinėPabaiga-SportoEilutėPradžia-H29,2)<>\"\",INDEX(Sportas[],SportoPaskutinėPabaiga-SportoEilutėPradžia-H29,3),0)),0)","v":270},5]
[{"$nulls":3},{"$f":"IFERROR(IF(INDEX(Sportas[],SportoPaskutinėPabaiga-SportoEilutėPradžia-H30,1)<>\"\",INDEX(Sportas[],SportoPaskutinėPabaiga-SportoEilutėPradžia-H30,1)),\"\")","v":"2017-05-16"},"AN",{"$f":"IFERROR((IF(INDEX(Sportas[],SportoPaskutinėPabaiga-SportoEilutėPradžia-H30,1)<>\"\",INDEX(Sportas[],SportoPaskutinėPabaiga-SportoEilutėPradžia-H30,2),0)),0)","v":45},{"$f":"IFERROR((IF(INDEX(Sportas[],SportoPaskutinėPabaiga-SportoEilutėPradžia-H30,2)<>\"\",INDEX(Sportas[],SportoPaskutinėPabaiga-SportoEilutėPradžia-H30,3),0)),0)","v":325},6]
[{"$nulls":3},{"$f":"IFERROR(IF(INDEX(Sportas[],SportoPaskutinėPabaiga-SportoEilutėPradžia-H31,1)<>\"\",INDEX(Sportas[],SportoPaskutinėPabaiga-SportoEilutėPradžia-H31,1)),\"\")","v":"2017-05-15"},"PR",{"$f":"IFERROR((IF(INDEX(Sportas[],SportoPaskutinėPabaiga-SportoEilutėPradžia-H31,1)<>\"\",INDEX(Sportas[],SportoPaskutinėPabaiga-SportoEilutėPradžia-H31,2),0)),0)","v":40},{"$f":"IFERROR((IF(INDEX(Sportas[],SportoPaskutinėPabaiga-SportoEilutėPradžia-H31,2)<>\"\",INDEX(Sportas[],SportoPaskutinėPabaiga-SportoEilutėPradžia-H31,3),0)),0)","v":175},7]
[{"$nulls":3},{"$f":"IFERROR(IF(INDEX(Sportas[],SportoPaskutinėPabaiga-SportoEilutėPradžia-H32,1)<>\"\",INDEX(Sportas[],SportoPaskutinėPabaiga-SportoEilutėPradžia-H32,1)),\"\")","v":"2017-05-14"},"SK",{"$f":"IFERROR((IF(INDEX(Sportas[],SportoPaskutinėPabaiga-SportoEilutėPradžia-H32,1)<>\"\",INDEX(Sportas[],SportoPaskutinėPabaiga-SportoEilutėPradžia-H32,2),0)),0)","v":30},{"$f":"IFERROR((IF(INDEX(Sportas[],SportoPaskutinėPabaiga-SportoEilutėPradžia-H32,2)<>\"\",INDEX(Sportas[],SportoPaskutinėPabaiga-SportoEilutėPradžia-H32,3),0)),0)","v":335},8]
[{"$nulls":3},{"$f":"IFERROR(IF(INDEX(Sportas[],SportoPaskutinėPabaiga-SportoEilutėPradžia-H33,1)<>\"\",INDEX(Sportas[],SportoPaskutinėPabaiga-SportoEilutėPradžia-H33,1)),\"\")","v":"2017-05-13"},"ŠT",{"$f":"IFERROR((IF(INDEX(Sportas[],SportoPaskutinėPabaiga-SportoEilutėPradžia-H33,1)<>\"\",INDEX(Sportas[],SportoPaskutinėPabaiga-SportoEilutėPradžia-H33,2),0)),0)","v":40},{"$f":"IFERROR((IF(INDEX(Sportas[],SportoPaskutinėPabaiga-SportoEilutėPradžia-H33,2)<>\"\",INDEX(Sportas[],SportoPaskutinėPabaiga-SportoEilutėPradžia-H33,3),0)),0)","v":205},9]
[{"$nulls":3},{"$f":"IFERROR(IF(INDEX(Sportas[],SportoPaskutinėPabaiga-SportoEilutėPradžia-H34,1)<>\"\",INDEX(Sportas[],SportoPaskutinėPabaiga-SportoEilutėPradžia-H34,1)),\"\")","v":"2017-05-12"},"PN",{"$f":"IFERROR((IF(INDEX(Sportas[],SportoPaskutinėPabaiga-SportoEilutėPradžia-H34,1)<>\"\",INDEX(Sportas[],SportoPaskutinėPabaiga-SportoEilutėPradžia-H34,2),0)),0)","v":20},{"$f":"IFERROR((IF(INDEX(Sportas[],SportoPaskutinėPabaiga-SportoEilutėPradžia-H34,2)<>\"\",INDEX(Sportas[],SportoPaskutinėPabaiga-SportoEilutėPradžia-H34,3),0)),0)","v":285},10]
[{"$nulls":3},{"$f":"IFERROR(IF(INDEX(Sportas[],SportoPaskutinėPabaiga-SportoEilutėPradžia-H35,1)<>\"\",INDEX(Sportas[],SportoPaskutinėPabaiga-SportoEilutėPradžia-H35,1)),\"\")","v":"2017-05-11"},"KT",{"$f":"IFERROR((IF(INDEX(Sportas[],SportoPaskutinėPabaiga-SportoEilutėPradžia-H35,1)<>\"\",INDEX(Sportas[],SportoPaskutinėPabaiga-SportoEilutėPradžia-H35,2),0)),0)","v":25},{"$f":"IFERROR((IF(INDEX(Sportas[],SportoPaskutinėPabaiga-SportoEilutėPradžia-H35,2)<>\"\",INDEX(Sportas[],SportoPaskutinėPabaiga-SportoEilutėPradžia-H35,3),0)),0)","v":125},11]
[{"$nulls":3},{"$f":"IFERROR(IF(INDEX(Sportas[],SportoPaskutinėPabaiga-SportoEilutėPradžia-H36,1)<>\"\",INDEX(Sportas[],SportoPaskutinėPabaiga-SportoEilutėPradžia-H36,1)),\"\")","v":"2017-05-10"},"TR",{"$f":"IFERROR((IF(INDEX(Sportas[],SportoPaskutinėPabaiga-SportoEilutėPradžia-H36,1)<>\"\",INDEX(Sportas[],SportoPaskutinėPabaiga-SportoEilutėPradžia-H36,2),0)),0)","v":30},{"$f":"IFERROR((IF(INDEX(Sportas[],SportoPaskutinėPabaiga-SportoEilutėPradžia-H36,2)<>\"\",INDEX(Sportas[],SportoPaskutinėPabaiga-SportoEilutėPradžia-H36,3),0)),0)","v":150},12]